bitfinex-derivatives/quotes_BTCF0:USTF0_20241117
["timestamp","ask_amount","ask_price","bid_price","bid_amount"]
[1731886146322,0.055685,89776.0,89775.0,0.01044652]
[1731886146522,0.055685,89776.0,89775.0,0.055686]
[1731886146721,0.0911,89779.0,89768.0,0.3608]
[1731886146722,0.055687,89774.0,89773.0,0.26465448]
[1731886146913,0.055687,89774.0,89773.0,0.0104469]
[1731886147109,0.05569,89769.0,89768.0,0.26465448]
[1731886147311,0.05569,89768.0,89765.0,0.32034648]
[1731886147506,0.05569,89768.0,89759.0,0.69250626]
[1731886147507,0.44716762,89769.0,89764.0,0.26465448]
[1731886147805,0.44716762,89769.0,89763.0,0.055693]
[1731886147806,0.055693,89764.0,89763.0,0.055693]
[1731886148019,0.055693,89764.0,89761.0,0.26465448]
[1731886148020,0.055695,89761.0,89760.0,0.055695]
[1731886148223,0.055695,89761.0,89755.0,0.00167092]
[1731886148224,0.3608,89761.0,89755.0,0.00167092]
[1731886148407,0.055698,89756.0,89755.0,0.00167092]
[1731886148609,0.13354412,89759.0,89745.0,0.02787275]
[1731886148811,0.3608,89752.0,89751.0,0.055701]
[1731886150012,0.3618,89752.0,89751.0,0.055701]
[1731886150210,0.3628,89752.0,89751.0,0.055701]
[1731886150718,0.002,89752.0,89751.0,0.055701]
[1731886151422,0.002,89752.0,89739.0,0.00010382]
[1731886151620,0.08580761,89750.0,89743.0,0.055706]
[1731886151828,0.055703,89748.0,89743.0,0.055706]
[1731886152118,0.3608,89744.0,89739.0,0.00010382]
[1731886152317,0.08580761,89742.0,89739.0,0.00010382]
[1731886152710,0.055707,89741.0,89739.0,0.00010382]
[1731886153122,0.0325,89740.0,89739.0,0.00010382]
[1731886153824,0.0325,89740.0,89739.0,0.05581182]
[1731886154329,0.0325,89740.0,89739.0,0.00010382]
[1731886156915,0.055701,89751.0,89740.0,0.055708]
[1731886157114,0.14064,89754.0,89751.0,0.0557]
[1731886157329,0.196339,89754.0,89751.0,0.0557]
[1731886158024,0.14064,89754.0,89751.0,0.0557]
[1731886158216,0.3618,89753.0,89751.0,0.0557]
[1731886158814,0.3618,89753.0,89744.0,0.08580761]
[1731886159015,0.3618,89753.0,89750.0,0.055701]
[1731886159219,0.3628,89753.0,89750.0,0.055701]
[1731886159829,0.3628,89753.0,89751.0,0.055701]
[1731886160619,0.4185,89753.0,89751.0,0.055701]
[1731886161427,0.3628,89753.0,89751.0,0.055701]
[1731886162728,0.3628,89753.0,89744.0,0.08580761]
[1731886162932,0.055701,89752.0,89749.0,0.055702]
[1731886163132,0.3628,89753.0,89751.0,0.0557]
[1731886165032,0.001,89752.0,89751.0,0.0557]
[1731886165933,0.196339,89754.0,89751.0,0.0557]
[1731886166243,0.002,89753.0,89751.0,0.0557]
[1731886167025,0.0557,89752.0,89745.0,0.055704]
[1731886167224,0.0557,89752.0,89747.0,0.055703]
[1731886167637,0.0567,89752.0,89747.0,0.055703]
[1731886168428,0.0577,89752.0,89747.0,0.055703]
[1731886168620,0.0567,89752.0,89747.0,0.055703]
[1731886168820,0.0577,89752.0,89747.0,0.055703]
[1731886169133,0.002,89752.0,89741.0,0.055707]
[1731886169332,0.055704,89746.0,89741.0,0.055707]
[1731886169538,0.002,89752.0,89739.0,0.00010382]
[1731886169539,0.3608,89742.0,89739.0,0.00010382]
[1731886169841,0.055707,89741.0,89739.0,0.00010382]
[1731886171737,0.056707,89741.0,89739.0,0.00010382]
[1731886172136,0.002,89741.0,89739.0,0.05581182]
[1731886173735,0.002,89741.0,89739.0,0.41661182]
[1731886174137,0.002,89741.0,89740.0,0.01045002]
[1731886175432,0.001,89741.0,89740.0,0.01045002]
[1731886175638,0.002,89741.0,89740.0,0.06615802]
[1731886178834,0.001,89741.0,89740.0,0.06615802]
[1731886179139,0.002,89741.0,89740.0,0.06615802]
[1731886179629,0.001,89741.0,89740.0,0.06615802]
[1731886179831,0.001,89741.0,89740.0,0.09814958]
[1731886180542,0.02864582,89753.0,89752.0,0.0557]
[1731886180844,0.02864582,89753.0,89740.0,0.09814958]
[1731886180845,0.13656,89754.0,89753.0,0.0557]
[1731886182445,0.193259,89754.0,89753.0,0.0557]
[1731886182928,0.22189915,89754.0,89753.0,0.0557]
[1731886183129,0.16620015,89754.0,89753.0,0.0557]
[1731886183643,0.16720015,89754.0,89753.0,0.0557]
[1731886185548,0.16720015,89754.0,89739.0,0.69261008]
[1731886185549,0.055707,89741.0,89739.0,0.00098382]
[1731886185735,0.055708,89740.0,89739.0,0.00010382]
[1731886186447,0.18925565,89740.0,89739.0,0.00010382]
[1731886186636,0.055708,89740.0,89739.0,0.00010382]
[1731886187242,0.056708,89740.0,89739.0,0.01010382]
[1731886187454,0.19025798,89740.0,89739.0,0.01010382]
[1731886188042,0.19125798,89740.0,89739.0,0.01110382]
[1731886188248,0.001,89740.0,89729.0,0.31531682]
[1731886188547,0.97434564,89730.0,89701.0,0.00608]
[1731886188846,0.3608,89702.0,89692.0,0.0325]
[1731886189051,0.3608,89702.0,89693.0,0.36684408]
[1731886189360,0.3608,89702.0,89694.0,0.35607861]
[1731886189563,0.3608,89702.0,89694.0,8.154e-05]
[1731886189851,0.3108,89702.0,89696.0,0.08580761]
[1731886190038,0.3108,89702.0,89697.0,0.00397581]
[1731886190246,0.3108,89702.0,89696.0,0.08580761]
[1731886190247,0.3108,89702.0,89698.0,0.00397581]
[1731886190439,0.00011889,89704.0,89703.0,0.055731]
[1731886190636,0.3608,89729.0,89718.0,0.055721]
[1731886190637,0.13522397,89727.0,89718.0,0.055721]
[1731886190853,0.001673,89727.0,89726.0,0.08580761]
[1731886191251,0.001673,89727.0,89726.0,0.14152361]
[1731886191843,0.001673,89727.0,89726.0,0.055716]
[1731886192043,0.004673,89727.0,89726.0,0.055716]
[1731886193548,0.003673,89727.0,89726.0,0.055716]
[1731886194153,0.002,89727.0,89726.0,0.055716]
[1731886194550,0.055713,89732.0,89726.0,0.055716]
[1731886194756,0.055713,89732.0,89729.0,0.08580761]
[1731886195061,0.36090582,89739.0,89723.0,0.0319]
[1731886195362,0.3608,89730.0,89729.0,0.08580761]
[1731886197960,0.3648,89730.0,89729.0,0.08580761]
[1731886199357,0.055715,89729.0,89698.0,0.006]
[1731886199564,0.45060761,89730.0,89702.0,0.04345399]
[1731886199565,0.3608,89703.0,89702.0,0.04345399]
[1731886201147,0.3618,89703.0,89702.0,0.04345399]
[1731886201353,0.3628,89703.0,89702.0,0.04345399]
[1731886202263,0.28622156,89739.0,89702.0,0.04345399]
[1731886202264,0.3608,89722.0,89702.0,1.03869373]
[1731886202452,0.3608,89722.0,89721.0,0.14152661]
[1731886203156,0.055713,89731.0,89725.0,0.055717]
[1731886203356,0.3608,89729.0,89726.0,0.0309]
[1731886203552,0.055715,89728.0,89727.0,0.0104521]
[1731886203766,0.055715,89728.0,89727.0,0.0317]
[1731886204466,0.055715,89728.0,89727.0,0.04215183]
[1731886204960,0.057715,89728.0,89727.0,0.04215183]
[1731886205168,0.002,89728.0,89727.0,0.12795944]
[1731886205359,0.002,89728.0,89727.0,0.15875944]
[1731886205564,0.3608,89736.0,89727.0,0.15875944]
[1731886205772,0.3608,89736.0,89735.0,0.08580761]
[1731886206275,0.055707,89742.0,89735.0,0.08580761]
[1731886206454,0.38533427,89747.0,89738.0,0.055709]
[1731886206661,0.09191053,89752.0,89738.0,0.416509]
[1731886206861,0.055708,89740.0,89738.0,0.416509]
[1731886207061,0.055708,89740.0,89738.0,0.3608]
[1731886208269,0.055708,89740.0,89738.0,0.416509]
[1731886208466,0.055705,89744.0,89741.0,0.055707]
[1731886208664,0.0001031,89747.0,89743.0,0.08580761]
[1731886208874,0.0001031,89747.0,89746.0,0.3608]
[1731886209177,0.0001031,89747.0,89746.0,0.36087876]
[1731886209664,0.0001031,89747.0,89746.0,0.37132781]
[1731886210060,0.001,89752.0,89751.0,0.055701]
[1731886210274,0.18876974,89773.0,89751.0,0.45705666]
[1731886210459,0.055682,89781.0,89770.0,0.08580761]
[1731886210460,0.00056001,89774.0,89770.0,0.08580761]
[1731886210660,0.05735965,89771.0,89770.0,0.08580761]
[1731886211766,0.05735965,89771.0,89755.0,0.26396862]
[1731886211767,0.055692,89765.0,89763.0,0.08580761]
[1731886212271,0.00267165,89771.0,89763.0,0.08580761]
[1731886212461,0.05835965,89771.0,89765.0,0.055692]
[1731886212973,0.00367165,89771.0,89765.0,0.055692]
[1731886213173,0.05569,89768.0,89765.0,0.055692]
[1731886213577,0.00367165,89771.0,89765.0,0.055692]
[1731886213766,0.00267165,89771.0,89770.0,0.14149661]
[1731886213995,0.00167165,89771.0,89770.0,0.17169661]
[1731886214281,0.00267165,89771.0,89770.0,0.17169661]
[1731886214667,0.00367165,89771.0,89770.0,0.17169661]
[1731886215180,0.00367165,89771.0,89770.0,0.0302]
[1731886215477,0.00367165,89771.0,89755.0,0.3926]
[1731886215671,0.00367165,89771.0,89769.0,0.14149661]
[1731886216175,0.00267165,89771.0,89769.0,0.14149661]
[1731886216373,0.00367165,89771.0,89769.0,0.14149661]
[1731886216684,0.00267165,89771.0,89769.0,0.14149661]
[1731886216873,0.00367165,89771.0,89769.0,0.14149661]
[1731886217973,0.00367165,89771.0,89769.0,0.16945992]
[1731886218670,0.002,89771.0,89769.0,0.16945992]
[1731886227096,0.002,89771.0,89770.0,0.09625356]
[1731886227273,0.1,89800.0,89773.0,0.055687]
[1731886227475,0.155671,89800.0,89798.0,0.055672]
[1731886228380,0.15580747,89800.0,89798.0,0.055672]
[1731886228579,0.15680747,89800.0,89798.0,0.055672]
[1731886228988,0.15680747,89800.0,89793.0,0.08580761]
[1731886229294,0.055673,89796.0,89793.0,0.055674]
[1731886229780,0.51816748,89800.0,89794.0,0.055674]
[1731886229974,0.51760747,89800.0,89794.0,0.055674]
[1731886230178,0.51860747,89800.0,89794.0,0.055674]
[1731886230575,0.51760747,89800.0,89794.0,0.055674]
[1731886230781,0.51760747,89800.0,89789.0,0.3608]
[1731886231079,0.46293647,89800.0,89790.0,0.055677]
[1731886231283,0.46293647,89800.0,89789.0,0.3608]
[1731886231284,0.46293647,89800.0,89797.0,0.055672]
[1731886231585,0.46293647,89800.0,89799.0,0.055671]
[1731886232290,0.46193647,89800.0,89799.0,0.055671]
[1731886232594,0.46193647,89800.0,89799.0,0.05575067]
[1731886232595,0.10213647,89800.0,89799.0,0.05575067]
[1731886236189,0.10213647,89800.0,89799.0,7.967e-05]
[1731886237990,0.46293647,89800.0,89799.0,7.967e-05]
[1731886238189,0.10213647,89800.0,89799.0,7.967e-05]
[1731886238792,0.46293647,89800.0,89799.0,7.967e-05]
[1731886239596,0.46293647,89800.0,89799.0,0.00418788]
[1731886239891,0.46293647,89800.0,89799.0,7.967e-05]
[1731886240094,0.60009647,89800.0,89799.0,7.967e-05]
[1731886240890,0.93417647,89800.0,89799.0,7.967e-05]
[1731886241591,0.96677647,89800.0,89799.0,7.967e-05]
[1731886241786,1.02093288,89800.0,89799.0,7.967e-05]
[1731886241987,0.96677647,89800.0,89799.0,7.967e-05]
[1731886242299,0.055682,89781.0,89780.0,0.00167052]
[1731886242598,0.055682,89781.0,89780.0,0.00587014]
[1731886242795,0.055682,89781.0,89780.0,0.01631621]
[1731886242999,0.055682,89781.0,89780.0,0.00167052]
[1731886244302,0.056682,89781.0,89780.0,0.00167052]
[1731886244492,0.057682,89781.0,89780.0,0.00167052]
[1731886247094,0.057682,89781.0,89780.0,0.00584983]
[1731886247296,0.057682,89781.0,89780.0,0.00167052]
[1731886247692,0.391842,89781.0,89780.0,0.00167052]
[1731886248092,0.42004859,89781.0,89780.0,0.00167052]
[1731886248489,0.42004859,89781.0,89777.0,0.00011115]
[1731886248490,0.72004859,89781.0,89777.0,0.00011115]
[1731886248794,0.055692,89765.0,89763.0,0.02798857]
[1731886248998,0.055692,89765.0,89764.0,0.36495224]
[1731886249708,0.055692,89765.0,89764.0,0.37124792]
[1731886250090,0.055692,89765.0,89764.0,0.37541687]
[1731886250295,0.055692,89765.0,89764.0,0.01461687]
[1731886250510,0.056692,89765.0,89764.0,0.01244792]
[1731886250711,0.001,89765.0,89764.0,0.01244792]
[1731886251007,0.001,89765.0,89764.0,0.06814092]
[1731886251905,0.001,89765.0,89764.0,0.07214092]
[1731886252116,0.001,89765.0,89764.0,0.07635307]
[1731886253896,0.001,89765.0,89764.0,0.08317107]
[1731886254297,0.0016713,89783.0,89782.0,0.055682]
[1731886254497,0.0016713,89783.0,89782.0,0.14148961]
[1731886254698,0.0016713,89783.0,89782.0,0.15193575]
[1731886256016,0.0026713,89783.0,89782.0,0.15193575]
[1731886256708,0.0036713,89783.0,89782.0,0.15193575]
[1731886257098,0.0593523,89783.0,89782.0,0.01044614]
[1731886257511,0.0593523,89783.0,89782.0,0.01044642]
[1731886257703,0.0036713,89783.0,89782.0,0.055682]
[1731886257908,0.0036713,89783.0,89782.0,0.06612847]
[1731886263908,0.0036713,89783.0,89782.0,0.01044647]
[1731886264112,0.0036713,89783.0,89774.0,0.08580761]
[1731886264408,0.0036713,89783.0,89780.0,0.055682]
[1731886264607,0.0036713,89783.0,89782.0,0.08580761]
[1731886264811,0.0036713,89783.0,89782.0,0.09625375]
[1731886265011,0.0036713,89783.0,89782.0,0.44660761]
[1731886265313,0.0036713,89783.0,89782.0,0.46120235]
[1731886265499,0.16481035,89796.0,89782.0,0.46120235]
[1731886265500,0.13656,89796.0,89795.0,0.055674]
[1731886265700,0.13656,89796.0,89795.0,0.14148161]
[1731886265901,0.13656,89801.0,89799.0,0.055671]
[1731886266508,0.3608,89802.0,89799.0,0.055671]
[1731886266710,0.13327526,89805.0,89799.0,0.42691494]
[1731886266914,0.13327526,89805.0,89799.0,0.416471]
[1731886267097,0.13327526,89809.0,89799.0,0.416471]
[1731886267297,0.13327526,89807.0,89799.0,0.42063252]
[1731886267502,0.10113647,89800.0,89799.0,0.61444078]
[1731886267812,0.13327526,89808.0,89807.0,0.055666]
[1731886268010,0.13327526,89809.0,89808.0,0.08580761]
[1731886268306,0.13320767,89810.0,89809.0,0.055665]
[1731886268611,0.13320767,89812.0,89809.0,0.08580761]
[1731886268804,0.13320767,89812.0,89811.0,0.055664]
[1731886269312,0.13320767,89813.0,89811.0,0.119364]
[1731886269503,0.13320767,89812.0,89811.0,0.119364]
[1731886270101,0.13320767,89813.0,89811.0,0.119364]
[1731886270307,0.13333772,89814.0,89811.0,0.0637]
[1731886270610,0.13333772,89814.0,89796.0,0.19796978]
[1731886270611,0.49394173,89812.0,89796.0,0.19796978]
[1731886270807,0.13314173,89808.0,89797.0,0.00417]
[1731886271113,0.055671,89800.0,89792.0,0.055675]
[1731886271520,0.055671,89800.0,89794.0,0.055674]
[1731886271715,0.055671,89800.0,89795.0,0.055673]
[1731886272228,0.001,89800.0,89795.0,0.14148061]
[1731886272418,0.001,89800.0,89797.0,0.055672]
[1731886272917,0.055669,89802.0,89797.0,0.055672]
[1731886273121,0.001,89800.0,89797.0,0.055672]
[1731886274508,0.26970173,89809.0,89795.0,0.08580761]
[1731886274716,0.055672,89798.0,89796.0,0.01044412]
[1731886275018,0.055672,89798.0,89795.0,0.08580761]
[1731886275207,0.055672,89798.0,89796.0,0.01044416]
[1731886275407,0.055672,89798.0,89797.0,0.01044416]
[1731886275611,0.055672,89798.0,89795.0,0.08580761]
[1731886275815,0.055672,89798.0,89791.0,0.0309]
[1731886276119,0.055672,89798.0,89792.0,0.01044428]
[1731886276318,0.055672,89798.0,89793.0,0.01044428]
[1731886276508,0.055672,89798.0,89794.0,0.01044428]
[1731886276709,0.055672,89798.0,89795.0,0.01044428]
[1731886276909,0.055672,89798.0,89793.0,0.055675]
[1731886277107,0.055672,89798.0,89794.0,0.01044428]
[1731886277312,0.056672,89798.0,89795.0,0.01044428]
[1731886277615,0.056672,89798.0,89796.0,0.01044428]
[1731886277811,0.056672,89798.0,89793.0,0.055675]
[1731886278022,0.056672,89798.0,89794.0,0.01044428]
[1731886278220,0.055673,89796.0,89795.0,0.01044428]
[1731886278404,0.055673,89796.0,89791.0,0.0309]
[1731886278806,0.001,89798.0,89791.0,0.0309]
[1731886279016,0.055677,89790.0,89789.0,0.0016705]
[1731886279222,0.055677,89790.0,89789.0,0.01211566]
[1731886279606,0.001,89798.0,89789.0,0.01211566]
[1731886279811,0.055676,89791.0,89790.0,0.01044516]
[1731886280212,0.055676,89791.0,89789.0,0.0016705]
[1731886280213,0.416476,89791.0,89789.0,0.0016705]
[1731886281228,0.33412,89790.0,89789.0,0.0016705]
[1731886281422,0.33412,89790.0,89770.0,0.55876978]
[1731886281617,0.055688,89772.0,89770.0,0.3608]
[1731886281817,0.055689,89770.0,89768.0,0.19796978]
[1731886282019,0.05569,89769.0,89767.0,0.19796978]
[1731886282213,0.05569,89769.0,89766.0,0.19796978]
[1731886282527,0.13644,89774.0,89765.0,0.19796978]
[1731886282720,0.3608,89773.0,89764.0,0.0301]
[1731886283030,0.055691,89767.0,89764.0,0.0301]
[1731886284616,0.001,89770.0,89764.0,0.11590761]
[1731886284935,0.001,89770.0,89769.0,0.41649]
[1731886285225,0.055679,89787.0,89769.0,0.37124733]
[1731886285226,0.1332371,89787.0,89769.0,0.37124733]
[1731886285425,0.1332371,89788.0,89780.0,0.3608]
[1731886285831,0.192117,89789.0,89781.0,0.01044596]
[1731886286129,0.192117,89789.0,89782.0,0.01044596]
[1731886286330,0.192117,89789.0,89783.0,0.01044596]
[1731886286521,0.192117,89789.0,89780.0,0.3608]
[1731886286719,0.13644,89789.0,89781.0,0.01044586]
[1731886286928,0.13644,89789.0,89771.0,0.19796978]
[1731886286929,0.3608,89782.0,89771.0,0.19796978]
[1731886287239,0.3608,89782.0,89768.0,0.02855433]
[1731886287240,0.055685,89778.0,89768.0,0.22652411]
[1731886287431,0.3608,89771.0,89768.0,0.02855433]
[1731886287613,0.055692,89766.0,89764.0,0.0301]
[1731886287928,0.055693,89764.0,89757.0,0.19796978]
[1731886288317,0.416493,89764.0,89757.0,0.19796978]
[1731886289030,0.055693,89764.0,89757.0,0.19796978]
[1731886289918,0.055693,89764.0,89756.0,0.05736816]
[1731886290315,0.056693,89764.0,89756.0,0.05736816]
[1731886290523,0.056693,89764.0,89756.0,0.00167116]
[1731886295932,0.001,89764.0,89756.0,0.00167116]
[1731886296240,0.13748,89764.0,89759.0,0.08580761]
[1731886296422,0.13748,89764.0,89762.0,0.055694]
[1731886296934,0.001,89764.0,89762.0,0.055694]
[1731886297132,0.00056001,89772.0,89763.0,0.04158644]
[1731886297434,0.13648,89775.0,89773.0,0.055687]
[1731886297635,0.13648,89775.0,89774.0,0.07624838]
[1731886297830,0.13648,89780.0,89779.0,0.055683]
[1731886298033,0.49728,89785.0,89781.0,0.08580761]
[1731886298337,0.49784001,89785.0,89781.0,0.08580761]
[1731886298930,0.49784001,89785.0,89777.0,0.055685]
[1731886299125,0.49784001,89785.0,89778.0,0.06613044]
[1731886299338,0.49784001,89785.0,89780.0,0.055683]
[1731886300432,0.13704001,89785.0,89781.0,0.09625378]
[1731886300637,0.00267159,89782.0,89781.0,0.12815378]
[1731886302724,0.00167159,89782.0,89781.0,0.12815378]
[1731886302938,0.00267159,89782.0,89781.0,0.12815378]
[1731886305449,0.00267159,89782.0,89781.0,0.11770761]
[1731886306232,0.00267159,89782.0,89781.0,0.17338961]
[1731886306639,0.13307153,89798.0,89781.0,0.70538143]
[1731886306841,0.13307153,89799.0,89792.0,0.3608]
[1731886307033,0.13307153,89800.0,89798.0,0.055672]
[1731886307232,0.416471,89799.0,89798.0,0.055672]
[1731886307435,0.416471,89799.0,89793.0,0.0638]
[1731886307436,0.3608,89799.0,89796.0,0.055673]
[1731886307732,0.001,89798.0,89797.0,0.055672]
[1731886309132,0.3608,89799.0,89796.0,0.055673]
[1731886309331,0.3608,89799.0,89793.0,0.0638]
[1731886309332,0.3618,89799.0,89797.0,0.055672]
[1731886310043,0.001,89798.0,89797.0,0.055672]
[1731886310736,0.3608,89799.0,89797.0,0.055672]
[1731886311037,0.3608,89799.0,89793.0,0.0638]
[1731886311038,0.3608,89799.0,89798.0,0.055672]
[1731886311540,0.13307153,89803.0,89798.0,0.08580761]
[1731886311749,0.3608,89806.0,89798.0,0.08580761]
[1731886311750,0.49387153,89806.0,89798.0,0.08580761]
[1731886311945,0.3608,89806.0,89805.0,0.055667]
[1731886312135,0.02814248,89806.0,89805.0,0.14147461]
[1731886312330,0.13307153,89809.0,89805.0,0.08580761]
[1731886312532,0.13315568,89809.0,89805.0,0.08580761]
[1731886312741,0.13482685,89811.0,89805.0,0.08580761]
[1731886313040,0.02971472,89811.0,89810.0,0.055664]
[1731886313239,0.00167117,89811.0,89810.0,0.055664]
[1731886314130,0.00267117,89811.0,89810.0,0.055664]
[1731886315131,0.13582685,89811.0,89810.0,0.055664]
[1731886315331,0.00267117,89811.0,89810.0,0.055664]
[1731886316646,0.00267117,89811.0,89810.0,2.055664]
[1731886316647,0.00167117,89811.0,89810.0,2.055664]
[1731886316843,0.001,89811.0,89810.0,2.055664]
[1731886317447,0.001,89811.0,89810.0,2.06610634]
[1731886317745,0.001,89811.0,89810.0,2.0]
[1731886318543,0.00013005,89814.0,89810.0,2.11355167]
[1731886318840,0.18880768,89830.0,89813.0,0.3608]
[1731886319042,0.055652,89830.0,89829.0,0.08580761]
[1731886319248,0.37436,89836.0,89831.0,0.055651]
[1731886319249,0.13315568,89834.0,89831.0,0.055651]
[1731886319433,0.36136001,89838.0,89832.0,0.05565]
[1731886319643,0.3608,89838.0,89837.0,0.08580761]
[1731886323452,0.3608,89838.0,89833.0,0.0643]
[1731886323639,0.055649,89835.0,89833.0,0.15010761]
[1731886323845,0.055649,89835.0,89833.0,0.0316]
[1731886325841,0.055653,89829.0,89823.0,0.032]
[1731886326041,0.3608,89838.0,89823.0,0.032]
[1731886326042,0.055655,89826.0,89823.0,0.032]
[1731886326637,0.3608,89838.0,89823.0,0.032]
[1731886326950,0.055651,89832.0,89830.0,0.08580761]
[1731886328358,0.13624,89837.0,89823.0,0.032]
[1731886328541,0.055653,89829.0,89823.0,0.032]
[1731886328742,0.055653,89829.0,89825.0,0.08580761]
[1731886331941,0.3608,89830.0,89825.0,0.08580761]
[1731886332272,0.055654,89826.0,89825.0,0.08580761]
[1731886332452,0.055654,89826.0,89825.0,0.09624916]
[1731886332747,0.055654,89826.0,89825.0,0.08580761]
[1731886333653,0.055656,89823.0,89818.0,0.08580761]
[1731886333856,0.055656,89823.0,89819.0,0.01044154]
[1731886334154,0.055656,89823.0,89820.0,0.01044154]
[1731886334458,0.055653,89829.0,89821.0,0.01044154]
[1731886334641,0.055653,89829.0,89822.0,0.01044154]
[1731886334856,0.055653,89829.0,89823.0,0.01044154]
[1731886335040,0.055653,89829.0,89824.0,0.01044154]
[1731886335247,0.055653,89829.0,89819.0,0.055659]
[1731886335446,0.055653,89829.0,89818.0,0.08580761]
[1731886335447,0.055653,89829.0,89820.0,0.06609961]
[1731886335652,0.055653,89829.0,89821.0,0.01044161]
[1731886335952,0.08433884,89829.0,89822.0,0.01044161]
[1731886336259,0.08433884,89829.0,89823.0,0.01044161]
[1731886336451,0.055654,89827.0,89824.0,0.01044161]
[1731886336656,0.055654,89827.0,89818.0,0.08580761]
[1731886336957,0.055654,89827.0,89819.0,0.06610047]
[1731886337162,0.055654,89827.0,89820.0,0.01044147]
[1731886337367,0.055654,89827.0,89821.0,0.01044147]
[1731886337658,0.055654,89827.0,89822.0,0.01044147]
[1731886337958,0.055654,89827.0,89823.0,0.01044147]
[1731886338163,0.3608,89830.0,89813.0,0.0600066]
[1731886338164,0.3608,89830.0,89825.0,0.08580761]
[1731886338351,0.3608,89830.0,89828.0,0.055653]
[1731886338655,0.3608,89830.0,89829.0,0.0621]
[1731886338849,0.3608,89830.0,89829.0,0.07254104]
[1731886339262,0.13315568,89837.0,89830.0,0.055652]
[1731886339455,0.13315568,89837.0,89836.0,0.055648]
[1731886340053,0.16162742,89838.0,89836.0,0.086548]
[1731886340255,0.13315568,89838.0,89836.0,0.086548]
[1731886340452,0.13624,89842.0,89836.0,0.086548]
[1731886340453,0.49395568,89837.0,89836.0,0.086548]
[1731886341263,0.3608,89837.0,89836.0,0.086548]
[1731886343447,0.49408752,89837.0,89836.0,0.086548]
[1731886343648,0.13328752,89837.0,89836.0,2.086548]
[1731886343845,0.16643425,89843.0,89837.0,0.055648]
[1731886343846,0.13328752,89842.0,89837.0,0.055648]
[1731886344047,9.483e-05,89843.0,89842.0,0.08580761]
[1731886344247,9.483e-05,89843.0,89842.0,0.09624769]
[1731886344852,9.483e-05,89843.0,89841.0,0.25347682]
[1731886345052,9.483e-05,89843.0,89841.0,0.055645]
[1731886346049,9.483e-05,89843.0,89841.0,0.25347682]
[1731886346259,9.483e-05,89843.0,89840.0,0.08580761]
[1731886346260,9.483e-05,89843.0,89836.0,2.00064]
[1731886346461,0.055648,89837.0,89836.0,2.0]
[1731886346656,0.191648,89837.0,89836.0,2.0]
[1731886347760,0.552448,89837.0,89836.0,2.0]
[1731886350059,0.71878742,89837.0,89836.0,2.0]
[1731886350266,0.552448,89837.0,89836.0,2.0]
[1731886350461,0.60657972,89837.0,89836.0,2.0]
[1731886353974,0.55093172,89837.0,89836.0,2.0]
[1731886354177,0.41493172,89837.0,89836.0,2.0]
[1731886354470,0.16680449,89843.0,89839.0,0.055646]
[1731886354654,0.16680449,89843.0,89836.0,2.01044052]
[1731886354655,9.483e-05,89843.0,89841.0,0.14145161]
[1731886354855,0.13343905,89843.0,89842.0,0.01043928]
[1731886355063,9.483e-05,89843.0,89842.0,0.01043928]
[1731886358460,9.483e-05,89843.0,89836.0,2.0006]
[1731886358658,0.13343905,89843.0,89837.0,0.0104399]
[1731886358866,0.18908305,89843.0,89837.0,0.0104399]
[1731886359269,0.18908305,89843.0,89838.0,0.0104399]
[1731886359466,0.055646,89840.0,89838.0,0.0104399]
[1731886359873,0.136,89839.0,89838.0,0.0104399]
[1731886360168,0.136,89839.0,89836.0,2.0006]
[1731886360358,0.136,89839.0,89836.0,2.0]
[1731886361267,0.13328845,89839.0,89836.0,2.0]
[1731886361575,0.13328845,89839.0,89838.0,0.055647]
[1731886361768,0.13328845,89839.0,89838.0,0.06608701]
[1731886362673,0.13328845,89839.0,89838.0,0.15189462]
[1731886364175,0.07065571,89839.0,89838.0,0.51269462]
[1731886364362,0.07065571,89839.0,89838.0,0.71117249]
[1731886364558,0.07065571,89839.0,89838.0,0.51269462]
[1731886364766,0.07065571,89839.0,89838.0,2.01269462]
[1731886365370,0.07065571,89839.0,89838.0,2.04103196]
[1731886366167,0.07065571,89839.0,89838.0,2.2395205]
[1731886366363,0.07065571,89839.0,89838.0,2.04103196]
[1731886366563,0.07065571,89839.0,89838.0,2.23952638]
[1731886366970,0.07065571,89839.0,89838.0,2.04103196]
[1731886367177,0.07065571,89839.0,89838.0,2.23952638]
[1731886368383,0.02065571,89839.0,89838.0,2.23952638]
[1731886368681,0.02065571,89839.0,89838.0,2.04103196]
[1731886369271,0.05730344,89861.0,89842.0,0.055644]
[1731886369579,0.05730344,89861.0,89858.0,0.055634]
[1731886370371,0.00167044,89861.0,89858.0,0.055634]
[1731886370773,0.416433,89860.0,89854.0,0.08580761]
[1731886371075,0.3608,89860.0,89855.0,0.01043762]
[1731886371276,0.055635,89858.0,89856.0,0.01043762]
[1731886371468,0.3608,89860.0,89856.0,0.055636]
[1731886371671,0.3608,89860.0,89854.0,0.08580761]
[1731886371872,0.3608,89860.0,89855.0,0.01043794]
[1731886372068,0.3608,89860.0,89858.0,0.055634]
[1731886374492,0.3608,89860.0,89859.0,0.055634]
[1731886382690,0.3608,89860.0,89859.0,0.0660715]
[1731886383072,0.3608,89860.0,89859.0,0.055634]
[1731886383273,0.00167044,89861.0,89860.0,0.055633]
[1731886383483,0.00167044,89861.0,89860.0,0.06607045]
[1731886383677,0.00167044,89861.0,89860.0,0.055633]
[1731886387278,0.00167044,89861.0,89859.0,2.0006]
[1731886387490,0.00167044,89861.0,89859.0,2.0]
[1731886387690,0.05730344,89861.0,89859.0,2.0]
[1731886387896,0.00167044,89861.0,89859.0,2.0]
[1731886388885,0.055633,89860.0,89859.0,2.0]
[1731886389281,0.22234266,89860.0,89859.0,2.0]
[1731886389483,0.055633,89860.0,89859.0,2.0]
[1731886389689,0.1097522,89860.0,89859.0,2.0]
[1731886390090,0.055633,89860.0,89859.0,2.0]
[1731886390398,0.10975132,89860.0,89859.0,2.0]
[1731886391287,0.3098279,89860.0,89859.0,2.0]
[1731886391487,0.10975132,89860.0,89859.0,2.0]
[1731886392492,0.44359132,89860.0,89859.0,2.0]
[1731886392879,0.86977818,89860.0,89859.0,1.39647861]
[1731886393491,0.86977818,89860.0,89859.0,1.16261669]